[Event "XVI Ugra Cup 2020"]
[Site "Khanty-Mansiysk"]
[Date "2020.12.05"]
[Round "6.9"]
[White "Maltsevskaya, Aleksandra"]
[Black "Vetokhin, Savva"]
[Result "1-0"]
[ECO "B90"]
[WhiteElo "2248"]
[BlackElo "2317"]
[Annotator "RC"]
[PlyCount "117"]
[EventDate "2020.11.30"]
[EventType "swiss"]
[EventCountry "RUS"]
[SourceTitle "playchess.com"]
[Source "ChessBase"]
[SourceQuality "1"]
[TimeControl "5400+30"]

1. e4 {[%emt 0:00:00]} c5 {[%emt 0:00:00]} 2. Nf3 {[%emt 0:00:00]} d6 {[%emt 0:00:00]} 3. d4 {[%emt 0:00:00]} cxd4 {[%emt 0:00:03]} 4. Nxd4 {[%emt 0:00:00]} Nf6 {[%emt 0:00:07]} 5. Nc3 {[%emt 0:00:00]} a6 {[%emt 0:00:07]} 6. h3 {[%emt 0:02:55]} e6 {[%emt 0:01:18]} 7. g4 {[%emt 0:05:08]} d5 {[%emt 0:01:57]} 8. exd5 {[%emt 0:00:07]} Nxd5 {[%emt 0:00:11]} 9. Nde2 {[%emt 0:00:05]} Nxc3 {[%emt 0:00:27]} 10. Qxd8+ {[%emt 0:00:17]} Kxd8 {[%emt 0:00:06]} 11. Nxc3 {[%emt 0:00:10]} Bd7 {[%emt 0:00:02]} 12. Bg2 {[%emt 0:11:02]} Bc6 {[%emt 0:00:12]} 13. O-O {[%emt 0:00:07]} Bxg2 {[%emt 0:00:45]} 14. Kxg2 {[%emt 0:00:05]} Nd7 {[%emt 0:01:45]} 15. Bf4 {[%emt 0:02:04]} Bb4 {[%emt 0:04:51]} 16. Ne4 {[%emt 0:00:27]} Nf6 {[%emt 0:08:55]} 17. Rad1+ {[%emt 0:03:38]} Ke8 {[%emt 0:00:31]} 18. Rd4 {[%emt 0:03:53]} Be7 {[%emt 0:00:46]} 19. Nd6+ {[%emt 0:01:19]} Bxd6 {[%emt 0:00:16]} 20. Bxd6 {[%emt 0:00:07]} Rd8 {[%emt 0:02:20]} 21. Rfd1 {[%emt 0:00:52]} Nd5 {[%emt 0:00:32]} 22. Bg3 {[%emt 0:00:20]} b5 {[%emt 0:00:57]} 23. a3 {[%emt 0:08:31]} Ke7 {[%emt 0:02:00]} 24. b3 {[%emt 0:02:13]} f6 {[%emt 0:00:37]} 25. R1d3 {[%emt 0:01:17]} Nb6 {[%emt 0:04:46]} 26. Rd6 {[%emt 0:04:09]} Rb8 {[%emt 0:15:07]} 27. a4 {[%emt 0:09:46]} bxa4 {[%emt 0:01:20]} 28. bxa4 {[%emt 0:00:16]} e5 {[%emt 0:01:24]} 29. a5 {[%emt 0:01:47]} Nc4 {[%emt 0:00:16]} 30. Rxa6 {[%emt 0:01:27]} Ra8 {[%emt 0:00:15]} 31. Rc6 {[%emt 0:00:11]} Rhc8 {[%emt 0:00:09]} 32. Rxc8 {[%emt 0:00:17]} Rxc8 {[%emt 0:00:06]} 33. a6 {[%emt 0:02:33]} Nd6 {[%emt 0:01:11]} 34. Ra3 {[%emt 0:02:33]} Kd7 {[%emt 0:04:04]} 35. a7 {[%emt 0:00:26]} Ra8 {[%emt 0:00:17]} 36. f4 {[%emt 0:00:07]} Nc4 {[%emt 0:02:43]} 37. Rc3 {[%emt 0:02:47]} Na5 {[%emt 0:03:06]} 38. fxe5 {[%emt 0:00:48]} Rxa7 {[%emt 0:00:10]} 39. exf6 {[%emt 0:00:29]} gxf6 {[%emt 0:00:05]} 40. Bh4 {[%emt 0:01:14]} Ke7 {[%emt 0:00:58]} 41. Rf3 {[%emt 0:00:56]} Ke6 {[%emt 0:02:17]} 42. Rxf6+ {[%emt 0:00:14]} Ke5 {[%emt 0:00:14]} 43. Rf5+ {[%emt 0:00:17]} Ke4 {[%emt 0:00:18]} 44. Bf2 {[%emt 0:00:41]} Ra6 {[%emt 0:00:41]} 45. Kg3 {[%emt 0:00:37]} Nc6 {[%emt 0:00:33]} 46. Rc5 {[%emt 0:02:24]} Ra3+ {[%emt 0:00:20]} 47. c3 {[%emt 0:00:12]} Ne5 {[%emt 0:00:22]} 48. Rc7 {[%emt 0:01:06]} Ng6 {[%emt 0:00:18]} 49. Bd4 {[%emt 0:00:32]} h6 {[%emt 0:00:19]} 50. h4 {[%emt 0:00:27]} Nf8 {[%emt 0:00:47]} 51. Re7+ {[%emt 0:00:14]} Kd5 {[%emt 0:00:14]} 52. Re5+ {[%emt 0:00:17]} Kc4 {[%emt 0:00:18]} 53. Rc5+ {[%emt 0:00:38]} Kd3 {[%emt 0:00:10]} 54. Rc6 {[%emt 0:00:04]} Ra1 {[%emt 0:01:45]} 55. Rxh6 {[%emt 0:00:07]} Re1 {[%emt 0:00:16]} 56. Rf6 {[%emt 0:00:20]} Ne6 {[%emt 0:00:07]} 57. Rf3+ {[%emt 0:00:49]} Ke4 {[%emt 0:00:07]} 58. Bf2 {[%emt 0:01:08]} Rh1 {[%emt 0:00:31]} 59. Re3+ {[%emt 0:00:11]} 1-0

[Event "XVI Ugra Cup 2020"]
[Site "Khanty-Mansiysk"]
[Date "2020.12.07"]
[Round "8.10"]
[White "Vladislav, Dudarev"]
[Black "Maltsevskaya, Aleksandra"]
[Result "0-1"]
[ECO "A31"]
[WhiteElo "2042"]
[BlackElo "2248"]
[Annotator "RC"]
[PlyCount "222"]
[EventDate "2020.11.30"]
[EventType "swiss"]
[EventCountry "RUS"]
[SourceTitle "playchess.com"]
[Source "ChessBase"]
[SourceQuality "1"]
[TimeControl "5400+30"]

1. d4 {[%emt 0:00:00]} Nf6 {[%emt 0:00:00]} 2. c4 {[%emt 0:00:00]} c5 {[%emt 0:00:00]} 3. Nf3 {[%emt 0:00:09]} cxd4 {[%emt 0:05:33]} 4. Nxd4 {[%emt 0:00:03]} Nc6 {[%emt 0:00:07]} 5. Nc3 {[%emt 0:00:23]} Qb6 {[%emt 0:02:53]} 6. Ndb5 {[%emt 0:11:36]} a6 {[%emt 0:09:34]} 7. Na4 {[%emt 0:10:07]} Qd8 {[%emt 0:00:09]} 8. Be3 {[%emt 0:01:26]} axb5 {[%emt 0:00:18]} 9. Bb6 {[%emt 0:00:19]} bxa4 {[%emt 0:00:04]} 10. Bxd8 {[%emt 0:00:09]} Nxd8 {[%emt 0:00:04]} 11. b4 {[%emt 0:18:34]} g6 {[%emt 0:08:41]} 12. f3 {[%emt 0:02:48]} Bg7 {[%emt 0:01:13]} 13. Rb1 {[%emt 0:01:37]} O-O {[%emt 0:01:02]} 14. g4 {[%emt 0:06:59]} e5 {[%emt 0:04:20]} 15. e3 {[%emt 0:05:23]} Ne6 {[%emt 0:00:39]} 16. Bg2 {[%emt 0:06:33]} Rd8 {[%emt 0:00:55]} 17. c5 {[%emt 0:08:09]} d6 {[%emt 0:00:17]} 18. cxd6 {[%emt 0:04:20]} Ra6 {[%emt 0:00:07]} 19. O-O {[%emt 0:01:36]} Raxd6 {[%emt 0:00:47]} 20. Qxa4 {[%emt 0:01:50]} Nd5 {[%emt 0:00:08]} 21. Qb3 {[%emt 0:01:34]} Bh6 {[%emt 0:02:35]} 22. Rfe1 {[%emt 0:09:09]} Bg5 {[%emt 0:06:05]} 23. Rbc1 {[%emt 0:01:21]} Nb6 {[%emt 0:02:30]} 24. Bf1 {[%emt 0:05:24]} Nd5 {[%emt 0:18:14]} 25. Bc4 {[%emt 0:00:32]} Nf6 {[%emt 0:00:20]} 26. h3 {[%emt 0:01:55]} b6 {[%emt 0:00:08]} 27. Kg2 {[%emt 0:01:02]} Bb7 {[%emt 0:00:22]} 28. Rcd1 {[%emt 0:00:18]} Rd2+ {[%emt 0:01:41]} 29. Rxd2 {[%emt 0:00:24]} Rxd2+ {[%emt 0:00:05]} 30. Re2 {[%emt 0:00:30]} Rxe2+ {[%emt 0:01:04]} 31. Bxe2 Nd5 {[%emt 0:00:06]} 32. Qa4 {[%emt 0:01:14]} Nxe3+ {[%emt 0:08:25]} 33. Kf2 {[%emt 0:00:33]} Bd5 {[%emt 0:02:09]} 34. Qe8+ {[%emt 0:00:26]} Kg7 {[%emt 0:00:07]} 35. Qb8 {[%emt 0:00:09]} Bf4 {[%emt 0:01:07]} 36. Qxb6 {[%emt 0:00:39]} Bxa2 {[%emt 0:01:28]} 37. b5 {[%emt 0:00:21]} Nd4 {[%emt 0:00:48]} 38. Qa5 {[%emt 0:00:55]} Nxe2 {[%emt 0:03:21]} 39. Qxa2 {[%emt 0:00:29]} Nc3 {[%emt 0:00:29]} 40. Qb3 {[%emt 0:00:27]} Ned5 {[%emt 0:00:06]} 41. Kg2 {[%emt 0:00:33]} Be3 {[%emt 0:00:08]} 42. Qc4 {[%emt 0:00:24]} Bd4 {[%emt 0:00:22]} 43. Qc6 {[%emt 0:00:21]} h6 {[%emt 0:02:08]} 44. h4 {[%emt 0:00:06]} Nb6 {[%emt 0:01:16]} 45. g5 {[%emt 0:00:50]} hxg5 {[%emt 0:00:30]} 46. hxg5 {[%emt 0:00:08]} Ncd5 {[%emt 0:00:04]} 47. Kh1 {[%emt 0:00:42]} Be3 {[%emt 0:00:14]} 48. Qd6 {[%emt 0:00:41]} Bf4 {[%emt 0:00:06]} 49. Qd8 {[%emt 0:00:13]} Bd2 {[%emt 0:01:02]} 50. Qd6 {[%emt 0:00:08]} Bxg5 {[%emt 0:00:50]} 51. Qxe5+ {[%emt 0:00:08]} Bf6 {[%emt 0:01:45]} 52. Qd6 {[%emt 0:00:10]} Bd4 {[%emt 0:00:10]} 53. Qd8 {[%emt 0:00:28]} Be5 {[%emt 0:00:44]} 54. Qe8 {[%emt 0:00:58]} Bf4 {[%emt 0:00:36]} 55. Qd8 {[%emt 0:00:08]} Bc7 {[%emt 0:00:11]} 56. Qg5 {[%emt 0:00:37]} Kf8 {[%emt 0:00:21]} 57. Qc1 {[%emt 0:01:02]} Ke7 {[%emt 0:00:25]} 58. Qc6 {[%emt 0:00:10]} Bd6 {[%emt 0:00:06]} 59. Qb7+ {[%emt 0:00:17]} Ke6 {[%emt 0:00:07]} 60. Qc6 {[%emt 0:00:07]} g5 {[%emt 0:01:41]} 61. Qb7 {[%emt 0:00:23]} f5 {[%emt 0:00:57]} 62. Qg7 {[%emt 0:00:23]} Be7 {[%emt 0:00:04]} 63. Qg8+ {[%emt 0:00:15]} Ke5 {[%emt 0:00:16]} 64. Qb8+ {[%emt 0:01:02]} Kd4 {[%emt 0:00:29]} 65. Qh8+ {[%emt 0:00:51]} Bf6 {[%emt 0:01:23]} 66. Qe8 {[%emt 0:01:01]} f4 {[%emt 0:05:38]} 67. Qe6 {[%emt 0:00:28]} Kc4 {[%emt 0:00:48]} 68. Qc6+ {[%emt 0:00:16]} Kd3 {[%emt 0:00:07]} 69. Qe6 {[%emt 0:00:09]} Kd4 {[%emt 0:00:30]} 70. Kh2 {[%emt 0:00:36]} Be7 {[%emt 0:00:30]} 71. Kh1 {[%emt 0:00:25]} Kc4 {[%emt 0:00:54]} 72. Qc6+ {[%emt 0:00:23]} Bc5 {[%emt 0:00:05]} 73. Qe8 {[%emt 0:00:41]} Bd4 {[%emt 0:00:48]} 74. Qc6+ {[%emt 0:00:23]} Kd3 {[%emt 0:01:28]} 75. Qe6 {[%emt 0:00:42]} Kd2 {[%emt 0:01:53]} 76. Qe4 {[%emt 0:00:37]} Be3 {[%emt 0:00:22]} 77. Kg2 {[%emt 0:00:29]} Ke2 {[%emt 0:01:09]} 78. Qe5 {[%emt 0:00:55]} g4 {[%emt 0:01:48]} 79. fxg4 {[%emt 0:01:21]} f3+ {[%emt 0:00:05]} 80. Kg3 {[%emt 0:00:06]} f2 {[%emt 0:05:18]} 81. Qb2+ {[%emt 0:00:11]} Bd2 {[%emt 0:00:07]} 82. Qxd2+ {[%emt 0:00:09]} Kxd2 {[%emt 0:00:04]} 83. Kxf2 {[%emt 0:00:05]} Kd3 {[%emt 0:00:11]} 84. g5 {[%emt 0:00:13]} Ne7 {[%emt 0:00:27]} 85. g6 {[%emt 0:00:11]} Nxg6 {[%emt 0:00:04]} 86. Kf3 {[%emt 0:00:28]} Kd4 {[%emt 0:00:08]} 87. Kf2 {[%emt 0:00:46]} Ne5 {[%emt 0:00:31]} 88. Kg3 {[%emt 0:00:13]} Ke3 {[%emt 0:00:11]} 89. Kg2 {[%emt 0:00:12]} Ng4 {[%emt 0:01:06]} 90. Kg3 {[%emt 0:00:06]} Nf6 {[%emt 0:00:04]} 91. Kg2 {[%emt 0:00:09]} Ne4 {[%emt 0:00:41]} 92. Kh3 {[%emt 0:00:14]} Kf4 {[%emt 0:00:16]} 93. Kh4 {[%emt 0:00:37]} Ng5 {[%emt 0:02:33]} 94. Kh5 {[%emt 0:00:05]} Nf3 {[%emt 0:01:00]} 95. Kg6 {[%emt 0:00:09]} Ke5 {[%emt 0:00:04]} 96. Kf7 {[%emt 0:00:43]} Nh4 {[%emt 0:00:53]} 97. Kg7 {[%emt 0:00:11]} Ke6 {[%emt 0:01:01]} 98. Kh6 {[%emt 0:00:29]} Kf5 {[%emt 0:00:05]} 99. Kg7 {[%emt 0:00:05]} Ng6 {[%emt 0:00:32]} 100. Kh6 {[%emt 0:00:24]} Nf4 {[%emt 0:00:56]} 101. Kg7 {[%emt 0:00:06]} Ke6 {[%emt 0:00:03]} 102. Kh6 {[%emt 0:00:14]} Kf6 {[%emt 0:00:06]} 103. Kh7 {[%emt 0:00:04]} Ne6 {[%emt 0:00:13]} 104. Kh6 {[%emt 0:00:05]} Ng7 {[%emt 0:00:03]} 105. Kh7 {[%emt 0:00:04]} Nf5 {[%emt 0:00:08]} 106. Kg8 {[%emt 0:00:06]} Ke7 {[%emt 0:00:10]} 107. Kh8 {[%emt 0:00:13]} Kf7 {[%emt 0:00:07]} 108. Kh7 {[%emt 0:00:07]} Nd7 {[%emt 0:00:34]} 109. b6 {[%emt 0:00:07]} Nf6+ {[%emt 0:00:03]} 110. Kh8 {[%emt 0:00:10]} Ne7 {[%emt 0:00:04]} 111. b7 {[%emt 0:00:04]} Ng6# {[%emt 0:00:03]} 0-1

[Event "XVI Ugra Cup 2020"]
[Site "Khanty-Mansiysk"]
[Date "2020.12.08"]
[Round "9.2"]
[White "Zvjaginsev, Vadim"]
[Black "Bocharov, Dmitry"]
[Result "1/2-1/2"]
[ECO "C67"]
[WhiteElo "2602"]
[BlackElo "2528"]
[Annotator "ChessBase"]
[PlyCount "21"]
[EventDate "2020.11.30"]
[EventType "swiss"]
[EventCountry "RUS"]
[SourceTitle "playchess.com"]
[Source "ChessBase"]
[SourceQuality "1"]
[TimeControl "5400+30"]

1. e4 {[%emt 0:00:00]} e5 {[%emt 0:07:06]} 2. Nf3 {[%emt 0:00:00]} Nc6 {[%emt 0:00:20]} 3. Bb5 {[%emt 0:00:00]} Nf6 {[%emt 0:00:33]} 4. O-O {[%emt 0:00:10]} Nxe4 {[%emt 0:00:20]} 5. Qe2 {[%emt 0:00:32]} Nd6 {[%emt 0:00:26]} 6. Bxc6 {[%emt 0:00:22]} dxc6 {[%emt 0:00:19]} 7. Qxe5+ {[%emt 0:00:19]} Qe7 {[%emt 0:00:17]} 8. Qa5 {[%emt 0:00:38]} Qd8 {[%emt 0:01:14]} 9. Qe5+ {[%emt 0:00:31]} Qe7 {[%emt 0:00:12]} 10. Qa5 {[%emt 0:00:22]} Qd8 {[%emt 0:00:13]} 11. Qe5+ {[%emt 0:00:11]} 1/2-1/2

[Event "XVI Ugra Cup 2020"]
[Site "Khanty-Mansiysk"]
[Date "2020.12.08"]
[Round "9.3"]
[White "Savchenko, Boris"]
[Black "Bocharov, Ivan"]
[Result "1/2-1/2"]
[ECO "B13"]
[WhiteElo "2551"]
[BlackElo "2559"]
[Annotator "ChessBase"]
[PlyCount "80"]
[EventDate "2020.11.30"]
[EventType "swiss"]
[EventCountry "RUS"]
[SourceTitle "playchess.com"]
[Source "ChessBase"]
[SourceQuality "1"]
[TimeControl "5400+30"]

1. e4 {[%emt 0:13:23]} c6 {[%emt 0:00:00]} 2. d4 {[%emt 0:00:39]} d5 {[%emt 0:00:00]} 3. exd5 {[%emt 0:01:53]} cxd5 {[%emt 0:00:00]} 4. Bd3 {[%emt 0:00:08]} Nc6 {[%emt 0:00:00]} 5. c3 {[%emt 0:00:13]} Nf6 {[%emt 0:00:07]} 6. Bf4 {[%emt 0:00:18]} Bg4 {[%emt 0:00:27]} 7. Qb3 {[%emt 0:00:17]} e5 {[%emt 0:00:02]} 8. h3 {[%emt 0:00:16]} Na5 {[%emt 0:00:36]} 9. Qc2 {[%emt 0:00:47]} exf4 {[%emt 0:00:48]} 10. hxg4 {[%emt 0:00:09]} Nxg4 {[%emt 0:00:10]} 11. Qe2+ {[%emt 0:08:37]} Qe7 {[%emt 0:00:11]} 12. Nh3 {[%emt 0:00:30]} f3 {[%emt 0:00:02]} 13. gxf3 {[%emt 0:00:27]} Qxe2+ {[%emt 0:03:24]} 14. Kxe2 {[%emt 0:02:58]} Nf6 {[%emt 0:00:01]} 15. Nd2 {[%emt 0:00:56]} Bd6 {[%emt 0:00:23]} 16. f4 {[%emt 0:22:03]} O-O {[%emt 0:04:23]} 17. a4 {[%emt 0:09:17]} Rfe8+ {[%emt 0:18:12]} 18. Kf3 {[%emt 0:03:17]} Nc6 {[%emt 0:01:26]} 19. Nf1 {[%emt 0:01:14]} Ne7 {[%emt 0:01:31]} 20. Ne3 {[%emt 0:04:34]} Ng6 {[%emt 0:01:27]} 21. Rag1 {[%emt 0:05:12]} Rad8 {[%emt 0:14:03]} 22. Ng5 {[%emt 0:14:30]} Bxf4 {[%emt 0:12:43]} 23. Nxf7 {[%emt 0:00:56]} Kxf7 {[%emt 0:01:52]} 24. Bxg6+ {[%emt 0:01:45]} hxg6 {[%emt 0:00:01]} 25. Kxf4 {[%emt 0:00:07]} Rd6 {[%emt 0:00:21]} 26. Kf3 {[%emt 0:03:11]} Ne4 {[%emt 0:03:57]} 27. Ng4 {[%emt 0:02:19]} Rb6 {[%emt 0:00:44]} 28. Ne5+ Kg8 29. Nd3 {[%emt 0:03:46]} Rf6+ {[%emt 0:02:56]} 30. Kg2 {[%emt 0:00:06]} Ref8 {[%emt 0:00:01]} 31. f4 {[%emt 0:00:10]} g5 {[%emt 0:00:03]} 32. Kf3 {[%emt 0:00:35]} gxf4 {[%emt 0:00:33]} 33. Rh5 {[%emt 0:00:13]} Rf5 {[%emt 0:09:29]} 34. Rxf5 {[%emt 0:00:01]} Rxf5 {[%emt 0:00:00]} 35. c4 {[%emt 0:00:01]} Nd2+ {[%emt 0:00:45]} 36. Kg4 {[%emt 0:00:07]} Rf6 {[%emt 0:00:04]} 37. Nxf4 {[%emt 0:00:17]} Nxc4 {[%emt 0:00:24]} 38. Re1 {[%emt 0:00:40]} Nxb2 {[%emt 0:00:53]} 39. Rb1 {[%emt 0:00:35]} Nxa4 {[%emt 0:03:37]} 40. Rxb7 {[%emt 0:00:09]} Rf7 {[%emt 0:01:01]} 1/2-1/2

[Event "XVI Ugra Cup 2020"]
[Site "Khanty-Mansiysk"]
[Date "2020.12.08"]
[Round "9.4"]
[White "Tsydypov, Zhamsaran"]
[Black "Pridorozhni, Aleksei"]
[Result "1-0"]
[ECO "C24"]
[WhiteElo "2558"]
[BlackElo "2590"]
[Annotator "ChessBase"]
[PlyCount "119"]
[EventDate "2020.11.30"]
[EventType "swiss"]
[EventCountry "RUS"]
[SourceTitle "playchess.com"]
[Source "ChessBase"]
[SourceQuality "1"]
[TimeControl "5400+30"]

1. e4 {[%emt 0:00:08]} e5 {[%emt 0:07:16]} 2. Bc4 {[%emt 0:00:47]} Nf6 {[%emt 0:00:11]} 3. d3 {[%emt 0:00:33]} c6 {[%emt 0:00:22]} 4. Nf3 {[%emt 0:00:33]} d5 {[%emt 0:00:13]} 5. Bb3 {[%emt 0:00:06]} Bb4+ {[%emt 0:01:01]} 6. c3 {[%emt 0:00:55]} Bd6 {[%emt 0:00:06]} 7. O-O {[%emt 0:02:09]} Nbd7 {[%emt 0:02:09]} 8. Re1 {[%emt 0:01:15]} dxe4 {[%emt 0:02:21]} 9. dxe4 {[%emt 0:00:23]} Nc5 {[%emt 0:00:48]} 10. Bc2 {[%emt 0:00:06]} Bg4 {[%emt 0:00:32]} 11. h3 {[%emt 0:00:31]} Bh5 {[%emt 0:00:06]} 12. Nbd2 {[%emt 0:00:07]} Bc7 {[%emt 0:05:56]} 13. Qe2 {[%emt 0:00:35]} O-O {[%emt 0:00:35]} 14. Nf1 {[%emt 0:02:52]} Re8 {[%emt 0:02:20]} 15. Ng3 {[%emt 0:01:03]} Bg6 {[%emt 0:00:07]} 16. Nh2 {[%emt 0:07:09]} Ne6 {[%emt 0:03:06]} 17. Ng4 {[%emt 0:00:39]} Nxg4 {[%emt 0:05:51]} 18. hxg4 {[%emt 0:00:40]} a5 {[%emt 0:01:23]} 19. a4 {[%emt 0:01:15]} Bb6 {[%emt 0:02:28]} 20. Nf5 {[%emt 0:01:06]} Bc5 {[%emt 0:00:07]} 21. g3 {[%emt 0:00:41]} Qb6 {[%emt 0:00:33]} 22. g5 {[%emt 0:02:19]} Rad8 {[%emt 0:01:36]} 23. Kg2 {[%emt 0:01:39]} Rd7 {[%emt 0:01:20]} 24. Rh1 {[%emt 0:03:23]} Qd8 {[%emt 0:16:28]} 25. Nh4 {[%emt 0:04:32]} Nxg5 {[%emt 0:01:38]} 26. Nxg6 {[%emt 0:01:14]} hxg6 {[%emt 0:00:36]} 27. Bb3 {[%emt 0:10:28]} Ne6 {[%emt 0:00:52]} 28. Rh2 {[%emt 0:11:27]} Qf6 {[%emt 0:03:22]} 29. Be3 {[%emt 0:05:13]} Bxe3 {[%emt 0:01:20]} 30. Qxe3 {[%emt 0:00:06]} Red8 {[%emt 0:00:38]} 31. Rah1 {[%emt 0:01:24]} Kf8 {[%emt 0:00:06]} 32. Rh8+ {[%emt 0:02:25]} Ke7 {[%emt 0:00:20]} 33. Rxd8 {[%emt 0:08:18]} Rxd8 {[%emt 0:00:41]} 34. Bxe6 {[%emt 0:02:34]} Qxe6 {[%emt 0:00:56]} 35. Qc5+ {[%emt 0:04:10]} Kf6 {[%emt 0:01:24]} 36. Qxa5 {[%emt 0:04:30]} Rd3 {[%emt 0:04:49]} 37. Qb4 {[%emt 0:02:07]} Qg4 {[%emt 0:01:12]} 38. Rf1 {[%emt 0:01:12]} Qf3+ {[%emt 0:00:32]} 39. Kg1 {[%emt 0:00:31]} Rd8 {[%emt 0:01:58]} 40. a5 {[%emt 0:03:42]} Rd7 {[%emt 0:08:12]} 41. Re1 {[%emt 0:02:00]} Kg5 {[%emt 0:04:42]} 42. Qf8 {[%emt 0:01:52]} f6 {[%emt 0:00:08]} 43. Qh8 {[%emt 0:01:16]} Qh5 {[%emt 0:00:23]} 44. Qc8 {[%emt 0:01:25]} Qg4 {[%emt 0:07:42]} 45. Kg2 {[%emt 0:00:44]} Rd3 {[%emt 0:01:50]} 46. Qxb7 {[%emt 0:00:26]} Qf3+ {[%emt 0:00:07]} 47. Kg1 {[%emt 0:00:03]} Rd2 {[%emt 0:00:19]} 48. Rf1 {[%emt 0:00:50]} Qe2 {[%emt 0:02:30]} 49. b4 {[%emt 0:02:14]} Kg4 {[%emt 0:02:36]} 50. Qxg7 {[%emt 0:00:34]} Qxe4 {[%emt 0:00:53]} 51. Qxf6 {[%emt 0:00:26]} g5 {[%emt 0:01:05]} 52. a6 {[%emt 0:03:34]} Qc4 {[%emt 0:01:25]} 53. a7 {[%emt 0:00:30]} Ra2 {[%emt 0:00:18]} 54. Qxe5 {[%emt 0:01:56]} Rxa7 {[%emt 0:00:13]} 55. Re1 {[%emt 0:00:59]} Qd5 {[%emt 0:00:27]} 56. Re4+ {[%emt 0:01:28]} Kf3 {[%emt 0:00:05]} 57. Re3+ {[%emt 0:00:59]} Kg4 {[%emt 0:00:05]} 58. f3+ {[%emt 0:00:19]} Kh5 {[%emt 0:00:11]} 59. g4+ {[%emt 0:00:08]} Kg6 {[%emt 0:00:08]} 60. Qe6+ {[%emt 0:00:38]} 1-0

[Event "XVI Ugra Cup 2020"]
[Site "Khanty-Mansiysk"]
[Date "2020.12.08"]
[Round "9.5"]
[White "Afanasiev, Nikita"]
[Black "Obgolts, Erik"]
[Result "1/2-1/2"]
[ECO "B12"]
[WhiteElo "2519"]
[BlackElo "2371"]
[Annotator "ChessBase"]
[PlyCount "73"]
[EventDate "2020.11.30"]
[EventType "swiss"]
[EventCountry "RUS"]
[SourceTitle "playchess.com"]
[Source "ChessBase"]
[SourceQuality "1"]
[TimeControl "5400+30"]

1. e4 {[%emt 0:15:06]} c6 {[%emt 0:00:00]} 2. d4 {[%emt 0:00:07]} d5 {[%emt 0:00:00]} 3. e5 {[%emt 0:00:06]} c5 {[%emt 0:00:00]} 4. dxc5 {[%emt 0:00:05]} e6 {[%emt 0:00:00]} 5. a3 {[%emt 0:00:26]} Bxc5 {[%emt 0:00:00]} 6. Nf3 {[%emt 0:00:10]} Ne7 {[%emt 0:00:38]} 7. Bd3 {[%emt 0:01:20]} Ng6 {[%emt 0:00:19]} 8. b4 {[%emt 0:00:24]} Be7 {[%emt 0:01:44]} 9. O-O {[%emt 0:03:00]} Nc6 {[%emt 0:00:14]} 10. Re1 {[%emt 0:01:30]} O-O {[%emt 0:00:12]} 11. Nbd2 {[%emt 0:14:28]} Bd7 {[%emt 0:00:28]} 12. Nb3 {[%emt 0:08:44]} Qc7 {[%emt 0:09:20]} 13. Qe2 {[%emt 0:04:36]} Be8 {[%emt 0:15:25]} 14. Rb1 {[%emt 0:14:25]} a5 {[%emt 0:02:01]} 15. b5 {[%emt 0:02:23]} a4 {[%emt 0:03:13]} 16. bxc6 {[%emt 0:03:04]} axb3 {[%emt 0:00:04]} 17. cxb7 {[%emt 0:00:07]} Qxb7 {[%emt 0:00:08]} 18. Rxb3 {[%emt 0:01:11]} Qc7 {[%emt 0:02:34]} 19. h4 {[%emt 0:12:21]} Ba4 {[%emt 0:03:02]} 20. Rb1 {[%emt 0:01:58]} Rfc8 {[%emt 0:01:54]} 21. h5 {[%emt 0:00:10]} Nf8 {[%emt 0:00:16]} 22. Nd4 {[%emt 0:06:23]} Nd7 {[%emt 0:08:51]} 23. Bf4 {[%emt 0:05:30]} Qc3 {[%emt 0:15:33]} 24. Nb5 {[%emt 0:02:05]} Bxb5 {[%emt 0:00:45]} 25. Rxb5 {[%emt 0:00:16]} Nc5 {[%emt 0:02:09]} 26. Bd2 {[%emt 0:00:34]} Qxa3 {[%emt 0:00:15]} 27. Bb4 {[%emt 0:00:16]} Qa7 {[%emt 0:04:34]} 28. Bxc5 {[%emt 0:01:14]} Rxc5 {[%emt 0:00:12]} 29. Rxc5 {[%emt 0:00:37]} Bxc5 {[%emt 0:00:28]} 30. g3 {[%emt 0:00:04]} Qa4 {[%emt 0:02:47]} 31. Rb1 {[%emt 0:00:29]} Qa7 {[%emt 0:02:15]} 32. Kg2 {[%emt 0:00:35]} Rb8 {[%emt 0:00:15]} 33. Rf1 {[%emt 0:00:14]} Qa2 {[%emt 0:01:38]} 34. Bb5 {[%emt 0:01:29]} Qb2 {[%emt 0:00:55]} 35. Bd3 {[%emt 0:00:06]} Qa2 {[%emt 0:00:14]} 36. Bb5 {[%emt 0:00:21]} Qb2 {[%emt 0:00:05]} 37. Bd3 1/2-1/2

[Event "XVI Ugra Cup 2020"]
[Site "Khanty-Mansiysk"]
[Date "2020.12.08"]
[Round "9.6"]
[White "Maltsevskaya, Aleksandra"]
[Black "Iljiushenok, Ilia"]
[Result "0-1"]
[ECO "B91"]
[WhiteElo "2248"]
[BlackElo "2539"]
[Annotator "ChessBase"]
[PlyCount "102"]
[EventDate "2020.11.30"]
[EventType "swiss"]
[EventCountry "RUS"]
[SourceTitle "playchess.com"]
[Source "ChessBase"]
[SourceQuality "1"]
[TimeControl "5400+30"]

1. e4 {[%emt 0:00:00]} c5 {[%emt 0:00:00]} 2. Nf3 {[%emt 0:00:43]} d6 {[%emt 0:00:00]} 3. d4 {[%emt 0:00:07]} cxd4 {[%emt 0:00:00]} 4. Nxd4 {[%emt 0:00:07]} Nf6 {[%emt 0:00:00]} 5. Nc3 {[%emt 0:00:10]} a6 {[%emt 0:00:00]} 6. g3 {[%emt 0:00:13]} g6 {[%emt 0:01:06]} 7. Bg2 {[%emt 0:04:41]} Bg7 {[%emt 0:00:04]} 8. O-O {[%emt 0:00:56]} O-O {[%emt 0:00:04]} 9. h3 {[%emt 0:01:03]} Nc6 {[%emt 0:00:09]} 10. Be3 {[%emt 0:03:16]} Nd7 {[%emt 0:06:22]} 11. Nce2 {[%emt 0:05:19]} Qc7 {[%emt 0:03:58]} 12. b3 {[%emt 0:01:28]} Nxd4 {[%emt 0:24:43]} 13. Bxd4 {[%emt 0:00:06]} Bxd4 {[%emt 0:00:13]} 14. Nxd4 {[%emt 0:00:06]} e5 15. Ne2 {[%emt 0:00:54]} b5 {[%emt 0:00:41]} 16. Qd2 {[%emt 0:03:27]} Rd8 {[%emt 0:03:24]} 17. Rac1 {[%emt 0:04:45]} Nb6 {[%emt 0:02:36]} 18. g4 {[%emt 0:15:35]} Bb7 {[%emt 0:03:58]} 19. Qg5 {[%emt 0:02:32]} Rd7 {[%emt 0:02:56]} 20. Ng3 {[%emt 0:10:19]} Qd8 {[%emt 0:00:47]} 21. Qe3 {[%emt 0:00:07]} Rc8 {[%emt 0:01:42]} 22. Rfd1 {[%emt 0:00:07]} Na8 {[%emt 0:10:23]} 23. c4 {[%emt 0:07:48]} bxc4 {[%emt 0:02:14]} 24. bxc4 {[%emt 0:00:06]} Nb6 {[%emt 0:02:39]} 25. Qb3 {[%emt 0:00:46]} Bc6 {[%emt 0:01:43]} 26. Qa3 {[%emt 0:13:16]} Na4 {[%emt 0:01:09]} 27. Rd2 {[%emt 0:00:12]} Nc5 {[%emt 0:00:31]} 28. Rcd1 {[%emt 0:00:08]} Rb8 {[%emt 0:01:57]} 29. Kh2 {[%emt 0:02:44]} a5 {[%emt 0:00:53]} 30. Qe3 {[%emt 0:03:20]} Rb4 {[%emt 0:02:05]} 31. Rc1 {[%emt 0:01:05]} Ne6 {[%emt 0:03:13]} 32. Rc3 {[%emt 0:02:21]} Kg7 {[%emt 0:02:14]} 33. Rc1 {[%emt 0:00:52]} Qb6 {[%emt 0:01:37]} 34. Qf3 {[%emt 0:04:15]} Rb2 {[%emt 0:05:51]} 35. Rcd1 {[%emt 0:01:06]} Rxd2 {[%emt 0:02:11]} 36. Rxd2 {[%emt 0:00:05]} Qb4 {[%emt 0:00:14]} 37. Qd1 {[%emt 0:04:06]} Ba4 {[%emt 0:02:30]} 38. Qc1 {[%emt 0:00:07]} Rc7 {[%emt 0:00:31]} 39. Bf1 {[%emt 0:00:22]} h6 {[%emt 0:01:50]} 40. Rd5 {[%emt 0:02:07]} Nf4 {[%emt 0:01:43]} 41. Rd2 {[%emt 0:00:16]} Qc5 {[%emt 0:01:49]} 42. Qc3 {[%emt 0:00:21]} Bd7 {[%emt 0:00:11]} 43. Qe3 {[%emt 0:02:48]} Rb7 {[%emt 0:03:02]} 44. Ne2 {[%emt 0:03:01]} Ne6 {[%emt 0:03:02]} 45. Nc3 {[%emt 0:01:42]} Nd4 {[%emt 0:01:21]} 46. Ne2 {[%emt 0:00:40]} Qxc4 {[%emt 0:00:55]} 47. Nxd4 {[%emt 0:00:18]} Qxf1 {[%emt 0:00:06]} 48. Ne2 {[%emt 0:02:56]} Rb1 {[%emt 0:02:46]} 49. Qf3 {[%emt 0:00:10]} Re1 {[%emt 0:00:49]} 50. Kg3 {[%emt 0:00:43]} Be6 {[%emt 0:00:41]} 51. Qe3 {[%emt 0:01:09]} Bc4 {[%emt 0:00:27]} 0-1